[Event "January 2 Early 2024"]
[Site "https://www.chess.com"]
[Date "2024.01.02"]
[Round "9"]
[White "Rakitin, Daniil"]
[Black "Balla, Tamas-Kristof"]
[Result "1-0"]
[Board "82"]
[TimeControl "180+1"]
[WhiteFideId "24219762"]
[BlackFideId "1208497"]
[WhiteElo "2695"]
[BlackElo "2500"]
[WhiteTeam "RUS"]
[BlackTeam "ROU"]
[WhiteClock "0:00:54"]
[BlackClock "0:00:34"]

1. e4 {[%clk 0:03:00]}  c5 {[%clk 0:03:00]} 2. Nf3 {[%clk 0:03:00]}  Nc6 {[%clk 0:03:00]} 3. Bb5 {[%clk 0:03:00]}  Nf6 {[%clk 0:02:59]} 4. e5 {[%clk 0:03:00]}  Nd5 {[%clk 0:02:59]} 5. Nc3 {[%clk 0:03:00]}  Nc7 {[%clk 0:02:58]} 6. Bxc6 {[%clk 0:03:00]}  dxc6 {[%clk 0:02:58]} 7. h3 {[%clk 0:03:01]}  h6 {[%clk 0:02:58]} 8. O-O {[%clk 0:03:02]}  Bf5 {[%clk 0:02:58]} 9. Re1 {[%clk 0:03:03]}  e6 {[%clk 0:02:58]} 10. d3 {[%clk 0:03:03]}  Be7 {[%clk 0:02:58]} 11. Nd2 {[%clk 0:03:04]}  O-O {[%clk 0:02:57]} 12. a4 {[%clk 0:03:05]}  a5 {[%clk 0:02:55]} 13. Nc4 {[%clk 0:03:04]}  Nd5 {[%clk 0:02:50]} 14. Ne4 {[%clk 0:02:55]}  Bxe4 {[%clk 0:02:50]} 15. dxe4 {[%clk 0:02:51]}  Nb4 {[%clk 0:02:48]} 16. Nd6 {[%clk 0:02:36]}  Qc7 {[%clk 0:02:37]} 17. c3 {[%clk 0:02:32]}  Na6 {[%clk 0:02:34]} 18. Qg4 {[%clk 0:02:31]}  Kh8 {[%clk 0:02:27]} 19. Rd1 {[%clk 0:02:26]}  Rad8 {[%clk 0:02:21]} 20. Bf4 {[%clk 0:02:24]}  Nb8 {[%clk 0:01:56]} 21. Qh5 {[%clk 0:02:21]}  Kg8 {[%clk 0:01:46]} 22. Rd3 {[%clk 0:01:57]}  f6 {[%clk 0:01:36]} 23. Bxh6 {[%clk 0:01:31]}  fxe5 {[%clk 0:01:17]} 24. Bxg7 {[%clk 0:01:17]}  Bxd6 {[%clk 0:00:51]} 25. Bxf8 {[%clk 0:00:54]}  Bxf8 {[%clk 0:00:34]} 26. Qg5+ {[%clk 0:00:54]} 1-0

[Event "January 2 Early 2024"]
[Site "https://www.chess.com"]
[Date "2024.01.02"]
[Round "9"]
[White "Hasanagic, Anel"]
[Black "Gritsenko, Nikolai"]
[Result "0-1"]
[Board "83"]
[TimeControl "180+1"]
[WhiteFideId "14605791"]
[BlackFideId "14112493"]
[WhiteElo "2494"]
[BlackElo "2664"]
[WhiteTeam "SLO"]
[BlackTeam "UKR"]
[WhiteClock "0:00:00"]
[BlackClock "0:00:18"]

1. b4 {[%clk 0:03:00]}  f6 {[%clk 0:02:59]} 2. Bb2 {[%clk 0:03:00]}  Nh6 {[%clk 0:02:59]} 3. c4 {[%clk 0:03:00]}  c6 {[%clk 0:02:59]} 4. Nf3 {[%clk 0:02:59]}  Na6 {[%clk 0:02:59]} 5. a3 {[%clk 0:02:59]}  Nc7 {[%clk 0:02:59]} 6. d4 {[%clk 0:03:00]}  d6 {[%clk 0:02:58]} 7. e3 {[%clk 0:02:59]}  Nf7 {[%clk 0:02:56]} 8. Nc3 {[%clk 0:03:00]}  g6 {[%clk 0:02:54]} 9. Be2 {[%clk 0:02:59]}  Bg7 {[%clk 0:02:54]} 10. b5 {[%clk 0:02:59]}  cxb5 {[%clk 0:02:48]} 11. cxb5 {[%clk 0:02:59]}  d5 {[%clk 0:02:48]} 12. a4 {[%clk 0:02:59]}  O-O {[%clk 0:02:40]} 13. O-O {[%clk 0:02:58]}  e6 {[%clk 0:02:38]} 14. Qb3 {[%clk 0:02:57]}  Nd6 {[%clk 0:02:27]} 15. Rfd1 {[%clk 0:02:55]}  Re8 {[%clk 0:02:17]} 16. Nd2 {[%clk 0:02:45]}  Bf8 {[%clk 0:01:59]} 17. h3 {[%clk 0:02:40]}  Bd7 {[%clk 0:01:42]} 18. e4 {[%clk 0:02:39]}  dxe4 {[%clk 0:01:40]} 19. Ndxe4 {[%clk 0:02:39]}  Nxe4 {[%clk 0:01:39]} 20. Nxe4 {[%clk 0:02:40]}  b6 {[%clk 0:01:38]} 21. d5 {[%clk 0:02:26]}  e5 {[%clk 0:01:35]} 22. Rac1 {[%clk 0:01:54]}  Kg7 {[%clk 0:01:24]} 23. f4 {[%clk 0:01:13]}  Bf5 {[%clk 0:01:03]} 24. Nxf6 {[%clk 0:00:59]}  Qxf6 {[%clk 0:01:00]} 25. fxe5 {[%clk 0:00:53]}  Rxe5 {[%clk 0:00:53]} 26. Rxc7+ {[%clk 0:00:52]}  Kh6 {[%clk 0:00:53]} 27. d6 {[%clk 0:00:29]}  Bxd6 {[%clk 0:00:39]} 28. Rf7 {[%clk 0:00:21]}  Qe6 {[%clk 0:00:20]} 29. Bxe5 {[%clk 0:00:13]}  Qxb3 {[%clk 0:00:19]} 30. Rxd6 {[%clk 0:00:11]}  Qe3+ {[%clk 0:00:18]} 31. Kh1 {[%clk 0:00:00]}  Qxe5 {[%clk 0:00:18]} 0-1

[Event "January 2 Early 2024"]
[Site "https://www.chess.com"]
[Date "2024.01.02"]
[Round "9"]
[White "Vlassov, Nikolai"]
[Black "Azali, Tannaz"]
[Result "1-0"]
[Board "85"]
[TimeControl "180+1"]
[WhiteFideId "4103360"]
[BlackFideId "12537721"]
[WhiteElo "2658"]
[BlackElo "2485"]
[WhiteTeam "FID"]
[BlackTeam "IRI"]
[WhiteClock "0:00:15"]
[BlackClock "0:00:00"]

1. e4 {[%clk 0:03:00]}  c6 {[%clk 0:02:37]} 2. d4 {[%clk 0:03:00]}  d5 {[%clk 0:02:38]} 3. f3 {[%clk 0:02:59]}  e6 {[%clk 0:02:37]} 4. Nc3 {[%clk 0:02:59]}  Bb4 {[%clk 0:02:38]} 5. Bf4 {[%clk 0:02:58]}  Ne7 {[%clk 0:02:38]} 6. Qd2 {[%clk 0:02:57]}  Nd7 {[%clk 0:02:36]} 7. O-O-O {[%clk 0:02:54]}  Ng6 {[%clk 0:02:34]} 8. Be3 {[%clk 0:02:45]}  O-O {[%clk 0:02:23]} 9. h4 {[%clk 0:02:45]}  e5 {[%clk 0:02:14]} 10. h5 {[%clk 0:02:43]}  Ne7 {[%clk 0:02:15]} 11. h6 {[%clk 0:02:32]}  g6 {[%clk 0:02:13]} 12. a3 {[%clk 0:02:31]}  Bd6 {[%clk 0:01:50]} 13. exd5 {[%clk 0:02:28]}  Nxd5 {[%clk 0:01:49]} 14. Nxd5 {[%clk 0:02:27]}  cxd5 {[%clk 0:01:48]} 15. dxe5 {[%clk 0:02:26]}  Bxe5 {[%clk 0:01:47]} 16. Qxd5 {[%clk 0:02:23]}  Qf6 {[%clk 0:01:46]} 17. Bd4 {[%clk 0:02:19]}  Qf4+ {[%clk 0:01:29]} 18. Kb1 {[%clk 0:02:16]}  Bxd4 {[%clk 0:01:22]} 19. Qxd4 {[%clk 0:02:14]}  Qxd4 {[%clk 0:01:19]} 20. Rxd4 {[%clk 0:02:14]}  Ne5 {[%clk 0:01:17]} 21. Ne2 {[%clk 0:02:07]}  Bf5 {[%clk 0:01:14]} 22. Ng3 {[%clk 0:02:02]}  Be6 {[%clk 0:01:14]} 23. Be2 {[%clk 0:01:55]}  Rfd8 {[%clk 0:01:03]} 24. Rhd1 {[%clk 0:01:54]}  Nc6 {[%clk 0:01:02]} 25. Rxd8+ {[%clk 0:01:52]}  Rxd8 {[%clk 0:01:03]} 26. Rxd8+ {[%clk 0:01:52]}  Nxd8 {[%clk 0:01:04]} 27. Ne4 {[%clk 0:01:52]}  f5 {[%clk 0:00:51]} 28. Nf6+ {[%clk 0:01:51]}  Kh8 {[%clk 0:00:50]} 29. c3 {[%clk 0:01:41]}  Nf7 {[%clk 0:00:50]} 30. Kc2 {[%clk 0:01:21]}  Nxh6 {[%clk 0:00:50]} 31. Kd3 {[%clk 0:01:21]}  Nf7 {[%clk 0:00:48]} 32. Kd4 {[%clk 0:01:19]}  Kg7 {[%clk 0:00:45]} 33. Ne8+ {[%clk 0:01:19]}  Kf8 {[%clk 0:00:44]} 34. Nc7 {[%clk 0:01:19]}  Bd7 {[%clk 0:00:44]} 35. Bb5 {[%clk 0:01:02]}  Bxb5 {[%clk 0:00:34]} 36. Nxb5 {[%clk 0:01:01]}  a6 {[%clk 0:00:35]} 37. Nc7 {[%clk 0:00:56]}  Ke7 {[%clk 0:00:35]} 38. Kc5 {[%clk 0:00:55]}  Kd7 {[%clk 0:00:25]} 39. Nd5 {[%clk 0:00:51]}  h5 {[%clk 0:00:22]} 40. Kb6 {[%clk 0:00:49]}  Nd6 {[%clk 0:00:22]} 41. b3 {[%clk 0:00:44]}  g5 {[%clk 0:00:21]} 42. c4 {[%clk 0:00:44]}  Kc8 {[%clk 0:00:19]} 43. c5 {[%clk 0:00:42]}  Nb5 {[%clk 0:00:17]} 44. Ne7+ {[%clk 0:00:31]}  Kb8 {[%clk 0:00:18]} 45. c6 {[%clk 0:00:27]}  bxc6 {[%clk 0:00:17]} 46. Nxc6+ {[%clk 0:00:27]}  Kc8 {[%clk 0:00:17]} 47. a4 {[%clk 0:00:26]}  Nc7 {[%clk 0:00:16]} 48. Ne7+ {[%clk 0:00:25]}  Kd7 {[%clk 0:00:16]} 49. Nxf5 {[%clk 0:00:25]}  Nd5+ {[%clk 0:00:09]} 50. Kxa6 {[%clk 0:00:24]}  Ke6 {[%clk 0:00:10]} 51. Ng7+ {[%clk 0:00:23]}  Kd6 {[%clk 0:00:08]} 52. Nxh5 {[%clk 0:00:23]}  Kc5 {[%clk 0:00:09]} 53. Kb7 {[%clk 0:00:21]}  Kb4 {[%clk 0:00:09]} 54. Ng7 {[%clk 0:00:20]}  Nf4 {[%clk 0:00:08]} 55. g3 {[%clk 0:00:18]}  Ne2 {[%clk 0:00:08]} 56. g4 {[%clk 0:00:18]}  Nd4 {[%clk 0:00:09]} 57. Kb6 {[%clk 0:00:16]}  Nxf3 {[%clk 0:00:07]} 58. a5 {[%clk 0:00:15]}  Ne5 {[%clk 0:00:08]} 59. a6 {[%clk 0:00:16]}  Nd7+ {[%clk 0:00:00]} 60. Kc7 {[%clk 0:00:15]} 1-0

[Event "January 2 Early 2024"]
[Site "https://www.chess.com"]
[Date "2024.01.02"]
[Round "9"]
[White "CamillaEffect"]
[Black "Shinkarev, M"]
[Result "1-0"]
[Board "88"]
[TimeControl "180+1"]
[BlackFideId "4145348"]
[WhiteElo "2633"]
[BlackElo "2446"]
[BlackTeam "RUS"]
[WhiteClock "0:00:20"]
[BlackClock "0:00:55"]

1. e4 {[%clk 0:03:00]}  e5 {[%clk 0:02:59]} 2. Nf3 {[%clk 0:02:58]}  d6 {[%clk 0:02:59]} 3. d4 {[%clk 0:02:58]}  Nd7 {[%clk 0:03:00]} 4. c4 {[%clk 0:02:47]}  c6 {[%clk 0:02:58]} 5. Nc3 {[%clk 0:02:47]}  Ngf6 {[%clk 0:02:57]} 6. h3 {[%clk 0:02:46]}  Be7 {[%clk 0:02:56]} 7. Be3 {[%clk 0:02:46]}  O-O {[%clk 0:02:56]} 8. Bd3 {[%clk 0:02:46]}  a6 {[%clk 0:02:53]} 9. a4 {[%clk 0:02:42]}  Qc7 {[%clk 0:02:51]} 10. a5 {[%clk 0:02:41]}  b5 {[%clk 0:02:44]} 11. axb6 {[%clk 0:02:41]}  Nxb6 {[%clk 0:02:44]} 12. Qe2 {[%clk 0:02:05]}  a5 {[%clk 0:02:38]} 13. g4 {[%clk 0:02:02]}  exd4 {[%clk 0:02:32]} 14. Nxd4 {[%clk 0:01:58]}  Nbd7 {[%clk 0:02:27]} 15. g5 {[%clk 0:01:42]}  Ne8 {[%clk 0:02:27]} 16. f4 {[%clk 0:01:42]}  Nc5 {[%clk 0:02:26]} 17. Bc2 {[%clk 0:01:35]}  f6 {[%clk 0:02:20]} 18. g6 {[%clk 0:01:26]}  h6 {[%clk 0:02:04]} 19. f5 {[%clk 0:01:25]}  Na6 {[%clk 0:02:00]} 20. Qh5 {[%clk 0:01:18]}  Nb4 {[%clk 0:01:55]} 21. Bb3 {[%clk 0:01:01]}  d5 {[%clk 0:01:48]} 22. cxd5 {[%clk 0:00:53]}  cxd5 {[%clk 0:01:45]} 23. Nxd5 {[%clk 0:00:49]}  Qg3+ {[%clk 0:01:25]} 24. Kd1 {[%clk 0:00:39]}  Kh8 {[%clk 0:00:58]} 25. Bxh6 {[%clk 0:00:20]}  Qd3+ {[%clk 0:00:57]} 26. Bd2+ {[%clk 0:00:19]}  Kg8 {[%clk 0:00:55]} 27. Nxe7# {[%clk 0:00:20]} 1-0

[Event "January 2 Early 2024"]
[Site "https://www.chess.com"]
[Date "2024.01.02"]
[Round "9"]
[White "Rees, Ioan"]
[Black "Aggelis, Nikolaos"]
[Result "0-1"]
[Board "93"]
[TimeControl "180+1"]
[WhiteFideId "1801236"]
[BlackFideId "4213220"]
[WhiteElo "2427"]
[BlackElo "2571"]
[WhiteTeam "WLS"]
[BlackTeam "GRE"]
[WhiteClock "0:00:24"]
[BlackClock "0:00:41"]

1. e4 {[%clk 0:02:32]}  c6 {[%clk 0:02:58]} 2. Nc3 {[%clk 0:02:31]}  d5 {[%clk 0:02:58]} 3. Nf3 {[%clk 0:02:31]}  Bg4 {[%clk 0:02:58]} 4. h3 {[%clk 0:02:30]}  Bxf3 {[%clk 0:02:58]} 5. Qxf3 {[%clk 0:02:31]}  e6 {[%clk 0:02:58]} 6. Qg3 {[%clk 0:02:31]}  dxe4 {[%clk 0:02:52]} 7. Nxe4 {[%clk 0:02:29]}  Nf6 {[%clk 0:02:52]} 8. Nxf6+ {[%clk 0:02:26]}  gxf6 {[%clk 0:02:40]} 9. d3 {[%clk 0:02:23]}  Nd7 {[%clk 0:02:39]} 10. Bf4 {[%clk 0:02:21]}  Qa5+ {[%clk 0:02:38]} 11. Bd2 {[%clk 0:02:19]}  Qe5+ {[%clk 0:02:34]} 12. Qxe5 {[%clk 0:02:19]}  fxe5 {[%clk 0:02:35]} 13. g4 {[%clk 0:02:16]}  f6 {[%clk 0:02:16]} 14. O-O-O {[%clk 0:02:10]}  h5 {[%clk 0:02:15]} 15. g5 {[%clk 0:02:09]}  f5 {[%clk 0:02:16]} 16. f4 {[%clk 0:02:07]}  Kf7 {[%clk 0:02:04]} 17. fxe5 {[%clk 0:01:59]}  Nxe5 {[%clk 0:02:05]} 18. Bc3 {[%clk 0:01:43]}  Bg7 {[%clk 0:01:54]} 19. g6+ {[%clk 0:01:43]}  Ke7 {[%clk 0:01:43]} 20. Re1 {[%clk 0:01:32]}  Kd6 {[%clk 0:01:43]} 21. Bg2 {[%clk 0:01:23]}  Rhg8 {[%clk 0:01:36]} 22. Rhg1 {[%clk 0:01:18]}  Nxg6 {[%clk 0:01:32]} 23. Bb4+ {[%clk 0:00:56]}  Kd7 {[%clk 0:01:18]} 24. Bf3 {[%clk 0:00:56]}  Nf4 {[%clk 0:01:11]} 25. Bd2 {[%clk 0:00:54]}  Nxh3 {[%clk 0:01:03]} 26. Rg6 {[%clk 0:00:51]}  Bxb2+ {[%clk 0:01:00]} 27. Kxb2 {[%clk 0:00:51]}  Rxg6 {[%clk 0:01:00]} 28. Rh1 {[%clk 0:00:49]}  Rg3 {[%clk 0:00:55]} 29. Bxh5 {[%clk 0:00:47]}  Nf2 {[%clk 0:00:49]} 30. Rh2 {[%clk 0:00:43]}  Rh8 {[%clk 0:00:49]} 31. Be8+ {[%clk 0:00:32]}  Rxe8 {[%clk 0:00:47]} 32. Rxf2 {[%clk 0:00:32]}  Rh8 {[%clk 0:00:47]} 33. Bf4 {[%clk 0:00:32]}  Rg4 {[%clk 0:00:43]} 34. Be5 {[%clk 0:00:32]}  Rh1 {[%clk 0:00:43]} 35. d4 {[%clk 0:00:24]}  b5 {[%clk 0:00:41]} 0-1

[Event "January 2 Early 2024"]
[Site "https://www.chess.com"]
[Date "2024.01.02"]
[Round "9"]
[White "Mikhalsky, Vladimir"]
[Black "Munoz Galvez, Jhon Edison"]
[Result "1/2-1/2"]
[Board "94"]
[TimeControl "180+1"]
[WhiteFideId "14144352"]
[BlackFideId "4403797"]
[WhiteElo "2419"]
[BlackElo "2569"]
[WhiteTeam "UKR"]
[BlackTeam "COL"]
[WhiteClock "0:00:03"]
[BlackClock "0:00:13"]

1. d4 {[%clk 0:03:00]}  Nf6 {[%clk 0:02:59]} 2. c4 {[%clk 0:03:00]}  e6 {[%clk 0:02:59]} 3. g4 {[%clk 0:02:54]}  d5 {[%clk 0:02:53]} 4. g5 {[%clk 0:02:54]}  Nfd7 {[%clk 0:02:53]} 5. Nc3 {[%clk 0:02:50]}  dxc4 {[%clk 0:02:40]} 6. e4 {[%clk 0:02:49]}  Nb6 {[%clk 0:02:37]} 7. Be3 {[%clk 0:02:40]}  Be7 {[%clk 0:02:31]} 8. h4 {[%clk 0:02:39]}  Na6 {[%clk 0:02:20]} 9. Nf3 {[%clk 0:02:29]}  c5 {[%clk 0:02:20]} 10. h5 {[%clk 0:02:25]}  cxd4 {[%clk 0:02:18]} 11. Bxd4 {[%clk 0:02:25]}  Rg8 {[%clk 0:02:13]} 12. g6 {[%clk 0:02:18]}  fxg6 {[%clk 0:02:00]} 13. hxg6 {[%clk 0:02:16]}  h6 {[%clk 0:01:58]} 14. Bxc4 {[%clk 0:02:00]}  Nxc4 {[%clk 0:01:56]} 15. Qa4+ {[%clk 0:02:00]}  Qd7 {[%clk 0:01:54]} 16. Qxc4 {[%clk 0:01:58]}  Qc6 {[%clk 0:01:54]} 17. Qxc6+ {[%clk 0:01:50]}  bxc6 {[%clk 0:01:54]} 18. Ne5 {[%clk 0:01:44]}  c5 {[%clk 0:01:54]} 19. Be3 {[%clk 0:01:42]}  Nb4 {[%clk 0:01:54]} 20. O-O-O {[%clk 0:01:41]}  Bf6 {[%clk 0:01:48]} 21. f4 {[%clk 0:01:34]}  Ba6 {[%clk 0:01:48]} 22. Bxc5 {[%clk 0:01:18]}  Bxe5 {[%clk 0:01:47]} 23. Bxb4 {[%clk 0:01:08]}  Bxf4+ {[%clk 0:01:47]} 24. Kb1 {[%clk 0:01:08]}  Rd8 {[%clk 0:01:43]} 25. Na4 {[%clk 0:00:55]}  Bd3+ {[%clk 0:01:39]} 26. Ka1 {[%clk 0:00:55]}  Rd4 {[%clk 0:01:25]} 27. Bc5 {[%clk 0:00:34]}  Rd7 {[%clk 0:01:19]} 28. Ba3 {[%clk 0:00:27]}  Bc2 {[%clk 0:00:42]} 29. Rxd7 {[%clk 0:00:24]}  Kxd7 {[%clk 0:00:42]} 30. Nc5+ {[%clk 0:00:24]}  Kc6 {[%clk 0:00:41]} 31. Nxe6 {[%clk 0:00:23]}  Bxe4 {[%clk 0:00:33]} 32. Re1 {[%clk 0:00:19]}  Rd8 {[%clk 0:00:21]} 33. Nxf4 {[%clk 0:00:18]}  Bf5 {[%clk 0:00:18]} 34. Bb4 {[%clk 0:00:17]}  Rd4 {[%clk 0:00:18]} 35. Rc1+ {[%clk 0:00:15]}  Kb5 {[%clk 0:00:17]} 36. Bc3 {[%clk 0:00:04]}  Rxf4 {[%clk 0:00:17]} 37. Bxg7 {[%clk 0:00:04]}  Bxg6 {[%clk 0:00:18]} 38. Bxh6 {[%clk 0:00:05]}  Rf2 {[%clk 0:00:17]} 39. Bg7 {[%clk 0:00:05]}  a5 {[%clk 0:00:14]} 40. Rg1 {[%clk 0:00:04]}  Bf7 {[%clk 0:00:14]} 41. Bd4 {[%clk 0:00:04]}  Rf4 {[%clk 0:00:13]} 42. Be3 {[%clk 0:00:03]}  Rf3 {[%clk 0:00:13]} 43. Bd2 {[%clk 0:00:03]}  a4 {[%clk 0:00:14]} 44. a3 {[%clk 0:00:02]}  Bb3 {[%clk 0:00:13]} 45. Bc3 {[%clk 0:00:01]}  Kc4 {[%clk 0:00:13]} 46. Kb1 {[%clk 0:00:02]}  Kd3 {[%clk 0:00:13]} 47. Kc1 {[%clk 0:00:02]}  Rf2 {[%clk 0:00:12]} 48. Rg3+ {[%clk 0:00:02]}  Ke4 {[%clk 0:00:13]} 49. Rg4+ {[%clk 0:00:02]}  Kf3 {[%clk 0:00:13]} 50. Rg1 {[%clk 0:00:02]}  Rc2+ {[%clk 0:00:13]} 51. Kb1 {[%clk 0:00:02]}  Rh2 {[%clk 0:00:13]} 52. Rf1+ {[%clk 0:00:01]}  Ke2 {[%clk 0:00:14]} 53. Re1+ {[%clk 0:00:02]}  Kd3 {[%clk 0:00:14]} 54. Rf1 {[%clk 0:00:02]}  Bc2+ {[%clk 0:00:13]} 55. Ka1 {[%clk 0:00:02]}  Bb3 {[%clk 0:00:14]} 56. Rg1 {[%clk 0:00:02]}  Ke2 {[%clk 0:00:13]} 57. Rc1 {[%clk 0:00:01]}  Kd3 {[%clk 0:00:13]} 58. Rg1 {[%clk 0:00:01]}  Kc4 {[%clk 0:00:13]} 59. Rf1 {[%clk 0:00:01]}  Bc2 {[%clk 0:00:14]} 60. Rg1 {[%clk 0:00:01]}  Kb3 {[%clk 0:00:13]} 61. Re1 {[%clk 0:00:02]}  Bd3 {[%clk 0:00:12]} 62. Rg1 {[%clk 0:00:02]}  Rf2 {[%clk 0:00:12]} 63. Re1 {[%clk 0:00:02]}  Rc2 {[%clk 0:00:12]} 64. Rg1 {[%clk 0:00:02]}  Re2 {[%clk 0:00:11]} 65. Rh1 {[%clk 0:00:02]}  Rf2 {[%clk 0:00:12]} 66. Rc1 {[%clk 0:00:03]}  Be4 {[%clk 0:00:12]} 67. Re1 {[%clk 0:00:03]}  Bf3 {[%clk 0:00:12]} 68. Rc1 {[%clk 0:00:03]}  Be2 {[%clk 0:00:12]} 69. Re1 {[%clk 0:00:03]}  Bf1 {[%clk 0:00:13]} 70. Rc1 {[%clk 0:00:03]}  Bc4 {[%clk 0:00:13]} 71. Rb1 {[%clk 0:00:04]}  Bd3 {[%clk 0:00:13]} 72. Rc1 {[%clk 0:00:04]}  Rf1 {[%clk 0:00:14]} 73. Rxf1 {[%clk 0:00:04]}  Bxf1 {[%clk 0:00:15]} 74. Bd2 {[%clk 0:00:04]}  Bd3 {[%clk 0:00:13]} 75. Bc3 {[%clk 0:00:03]}  Bc2 {[%clk 0:00:13]} 1/2-1/2

[Event "January 2 Early 2024"]
[Site "https://www.chess.com"]
[Date "2024.01.02"]
[Round "9"]
[White "Pinero Rodriguez, Carlos Jose"]
[Black "Preobrazhenskaya, Diana"]
[Result "1-0"]
[Board "102"]
[TimeControl "180+1"]
[WhiteFideId "3901726"]
[BlackFideId "34270566"]
[WhiteElo "2524"]
[BlackElo "2365"]
[WhiteTeam "VEN"]
[BlackTeam "FID"]
[WhiteClock "0:00:15"]
[BlackClock "0:00:00"]

1. e4 {[%clk 0:02:48]}  c5 {[%clk 0:02:59]} 2. Nf3 {[%clk 0:02:46]}  d6 {[%clk 0:02:59]} 3. d4 {[%clk 0:02:46]}  cxd4 {[%clk 0:02:59]} 4. Nxd4 {[%clk 0:02:47]}  Nf6 {[%clk 0:02:59]} 5. Nc3 {[%clk 0:02:44]}  a6 {[%clk 0:02:59]} 6. Bg5 {[%clk 0:02:45]}  Nbd7 {[%clk 0:02:59]} 7. f4 {[%clk 0:02:45]}  Qa5 {[%clk 0:02:59]} 8. Qe2 {[%clk 0:02:44]}  h6 {[%clk 0:02:58]} 9. Bh4 {[%clk 0:02:44]}  e5 {[%clk 0:02:58]} 10. Nb3 {[%clk 0:02:42]}  Qc7 {[%clk 0:02:58]} 11. f5 {[%clk 0:02:39]}  g5 {[%clk 0:02:44]} 12. Bf2 {[%clk 0:02:31]}  b5 {[%clk 0:02:35]} 13. a3 {[%clk 0:02:30]}  Bb7 {[%clk 0:02:33]} 14. g3 {[%clk 0:02:23]}  Rc8 {[%clk 0:02:05]} 15. Bg2 {[%clk 0:02:20]}  Nb6 {[%clk 0:02:04]} 16. Nd2 {[%clk 0:02:11]}  h5 {[%clk 0:01:39]} 17. O-O-O {[%clk 0:02:04]}  Nc4 {[%clk 0:01:25]} 18. Nxc4 {[%clk 0:02:02]}  bxc4 {[%clk 0:01:26]} 19. Kb1 {[%clk 0:01:51]}  Rb8 {[%clk 0:01:21]} 20. Ka2 {[%clk 0:01:50]}  Ba8 {[%clk 0:01:12]} 21. Rb1 {[%clk 0:01:50]}  Be7 {[%clk 0:01:10]} 22. h3 {[%clk 0:01:38]}  a5 {[%clk 0:00:48]} 23. Be3 {[%clk 0:01:32]}  Nd7 {[%clk 0:00:36]} 24. Rhd1 {[%clk 0:01:30]}  Qc6 {[%clk 0:00:23]} 25. Nd5 {[%clk 0:01:29]}  Bd8 {[%clk 0:00:19]} 26. Bf3 {[%clk 0:01:15]}  h4 {[%clk 0:00:14]} 27. g4 {[%clk 0:00:53]}  Qa6 {[%clk 0:00:14]} 28. Bg2 {[%clk 0:00:50]}  Bxd5 {[%clk 0:00:13]} 29. Rxd5 {[%clk 0:00:49]}  Nf6 {[%clk 0:00:12]} 30. Rdd1 {[%clk 0:00:45]}  Qc6 {[%clk 0:00:12]} 31. Bd2 {[%clk 0:00:40]}  Bc7 {[%clk 0:00:10]} 32. Bxg5 {[%clk 0:00:39]}  Bd8 {[%clk 0:00:09]} 33. Bd2 {[%clk 0:00:37]}  Nd7 {[%clk 0:00:09]} 34. Bc3 {[%clk 0:00:36]}  Nc5 {[%clk 0:00:08]} 35. Qxc4 {[%clk 0:00:36]}  Be7 {[%clk 0:00:08]} 36. f6 {[%clk 0:00:30]}  Bxf6 {[%clk 0:00:07]} 37. Rf1 {[%clk 0:00:31]}  Be7 {[%clk 0:00:03]} 38. Qxf7+ {[%clk 0:00:29]}  Kd7 {[%clk 0:00:04]} 39. Qc4 {[%clk 0:00:25]}  Rbf8 {[%clk 0:00:03]} 40. Bf3 {[%clk 0:00:21]}  Qb6 {[%clk 0:00:03]} 41. g5 {[%clk 0:00:17]}  Ne6 {[%clk 0:00:03]} 42. Bg4 {[%clk 0:00:17]}  d5 {[%clk 0:00:01]} 43. Qxd5+ {[%clk 0:00:17]}  Ke8 {[%clk 0:00:02]} 44. Qxe6 {[%clk 0:00:18]}  Qc5 {[%clk 0:00:02]} 45. g6 {[%clk 0:00:16]}  Rxf1 {[%clk 0:00:02]} 46. Rxf1 {[%clk 0:00:15]}  Qc7 {[%clk 0:00:00]} 47. g7 {[%clk 0:00:15]} 1-0

[Event "January 2 Early 2024"]
[Site "https://www.chess.com"]
[Date "2024.01.02"]
[Round "9"]
[White "Shapiro, Viktor"]
[Black "Gao, Raymond"]
[Result "1/2-1/2"]
[Board "104"]
[TimeControl "180+1"]
[WhiteFideId "4175700"]
[BlackFideId "2629429"]
[WhiteElo "2522"]
[BlackElo "2364"]
[WhiteTeam "RUS"]
[BlackTeam "CAN"]
[WhiteClock "0:00:53"]
[BlackClock "0:00:11"]

1. c4 {[%clk 0:02:54]}  e5 {[%clk 0:02:58]} 2. Nc3 {[%clk 0:02:54]}  Bb4 {[%clk 0:02:57]} 3. g3 {[%clk 0:02:55]}  Bxc3 {[%clk 0:02:55]} 4. bxc3 {[%clk 0:02:55]}  f5 {[%clk 0:02:56]} 5. Bg2 {[%clk 0:02:55]}  Nf6 {[%clk 0:02:54]} 6. d3 {[%clk 0:02:55]}  O-O {[%clk 0:02:54]} 7. f4 {[%clk 0:02:51]}  d6 {[%clk 0:02:50]} 8. Rb1 {[%clk 0:02:46]}  Nc6 {[%clk 0:02:48]} 9. Nf3 {[%clk 0:02:39]}  e4 {[%clk 0:02:46]} 10. Nd4 {[%clk 0:02:32]}  Qe7 {[%clk 0:02:38]} 11. O-O {[%clk 0:02:29]}  Re8 {[%clk 0:02:02]} 12. Nxc6 {[%clk 0:02:25]}  bxc6 {[%clk 0:02:01]} 13. Qa4 {[%clk 0:02:25]}  Bd7 {[%clk 0:01:57]} 14. Qa5 {[%clk 0:02:23]}  Bc8 {[%clk 0:01:36]} 15. Bh3 {[%clk 0:01:59]}  g6 {[%clk 0:01:09]} 16. Bg2 {[%clk 0:01:58]}  h5 {[%clk 0:01:08]} 17. h3 {[%clk 0:01:45]}  h4 {[%clk 0:01:06]} 18. gxh4 {[%clk 0:01:43]}  Kg7 {[%clk 0:00:56]} 19. Kh2 {[%clk 0:01:15]}  Rh8 {[%clk 0:00:55]} 20. dxe4 {[%clk 0:01:04]}  fxe4 {[%clk 0:00:44]} 21. Be3 {[%clk 0:01:03]}  Ng4+ {[%clk 0:00:10]} 22. hxg4 {[%clk 0:00:54]}  Qxh4+ {[%clk 0:00:10]} 23. Kg1 {[%clk 0:00:55]}  Qh2+ {[%clk 0:00:10]} 24. Kf2 {[%clk 0:00:55]}  Qh4+ {[%clk 0:00:11]} 25. Kg1 {[%clk 0:00:55]}  Qh2+ {[%clk 0:00:11]} 26. Kf2 {[%clk 0:00:54]}  Qh4+ {[%clk 0:00:11]} 27. Kg1 {[%clk 0:00:53]} 1/2-1/2